fUSD/lending_fUSD_20250523
["ID","MTS","AMOUNT","RATE_DAILY","PERIOD"]
[362133853,1748019048810,-2080.09,0.00027397,4]
[362133854,1748019048820,-420.0,0.00027397,4]
[362133855,1748019048831,-420.0,0.00027397,4]
[362133856,1748019048841,-420.0,0.00027397,4]
[362133857,1748019048851,-420.0,0.00027397,4]
[362133858,1748019048861,-420.0,0.00027397,4]
[362133859,1748019048872,-155.218522,0.00027397,7]
[362133860,1748019048882,-496.20357206,0.00027397,4]
[362133861,1748019048891,-420.0,0.00027397,4]
[362133862,1748019048901,-151.0,0.00027397,7]
[362133863,1748019048911,-420.0,0.00027397,4]
[362133864,1748019048921,-151.0,0.00027397,7]
[362133865,1748019048931,-420.0,0.00027397,4]
[362133866,1748019048942,-420.0,0.00027397,4]
[362133867,1748019048952,-738.08,0.00027397,4]
[362133868,1748019048961,-420.0,0.00027397,4]
[362133869,1748019048973,-420.0,0.00027397,4]
[362133870,1748019048983,-420.0,0.00027397,4]
[362133871,1748019048994,-420.0,0.00027397,2]
[362133872,1748019049004,-420.0,0.00027397,4]
[362133873,1748019049014,-420.0,0.00027397,4]
[362133874,1748019049025,-479.370964,0.00027397,4]
[362133875,1748019049034,-455.75,0.00027397,4]
[362133876,1748019049045,-420.0,0.00027397,4]
[362133877,1748019049055,-420.0,0.00027397,4]
[362133878,1748019049064,-516.01,0.00027397,4]
[362133879,1748019049074,-420.0,0.00027397,4]
[362133880,1748019049083,-420.0,0.00027397,4]
[362133881,1748019049094,-420.0,0.00027397,4]
[362133882,1748019049104,-151.0,0.00027397,7]
[362133883,1748019049114,-420.0,0.00027397,4]
[362133884,1748019049123,-420.0,0.00027397,4]
[362133885,1748019049132,-151.0,0.00027397,7]
[362133886,1748019049142,-420.0,0.00027397,4]
[362133887,1748019049152,-420.0,0.00027397,4]
[362133888,1748019049163,-420.0,0.00027397,4]
[362133889,1748019049173,-420.0,0.00027397,4]
[362133890,1748019049182,-283.07,0.00027397,4]
[362133891,1748019049192,-500.0,0.00027397,7]
[362133892,1748019049201,-1487.29,0.00027397,2]
[362133893,1748019049211,-151.17,0.00027397,2]
[362133894,1748019049221,-443.17771527,0.000274,2]
[362133895,1748019049230,-150.0,0.00027414,2]
[362133896,1748019049239,-223.0315306,0.00027432,2]
[362133897,1748019049249,-150.0,0.00027433,2]
[362133898,1748019049259,-150.0,0.00027448,2]
[362133899,1748019049268,-200.0,0.00027449,2]
[362133900,1748019049278,-276.15038251,0.00027452,30]
[362133901,1748019049288,-408.7909,0.00027462,2]
[362133902,1748019049298,-150.0,0.00027476,2]
[362133903,1748019049307,-150.0,0.00027478,2]
[362133904,1748019049317,-18435.78917609,0.00027503,2]
[362133905,1748019049326,-150.0,0.00027505,2]
[362133906,1748019049336,-510.4902,0.00027532,2]
[362133907,1748019049346,-150.0,0.00027533,2]
[362133908,1748019049355,-368.278338,0.00027534,4]
[362133909,1748019049365,-420.0,0.00027534,4]
[362133910,1748019049374,-420.0,0.00027534,4]
[362133911,1748019049389,-354.21,0.00027534,4]
[362133912,1748019049399,-550.47,0.00027534,4]
[362133913,1748019049410,-420.0,0.00027534,4]
[362133914,1748019049419,-461.27,0.00027534,4]
[362133915,1748019049429,-420.0,0.00027534,4]
[362133916,1748019049439,-200.68,0.00027534,4]
[362133917,1748019049448,-523.65,0.00027534,4]
[362133918,1748019049458,-420.0,0.00027534,4]
[362133919,1748019049468,-156.87,0.00027534,4]
[362133920,1748019049478,-420.0,0.00027534,4]
[362133921,1748019049487,-420.0,0.00027534,4]
[362133922,1748019049497,-420.0,0.00027534,4]
[362133923,1748019049507,-420.0,0.00027534,4]
[362133924,1748019049517,-564.04,0.00027534,4]
[362133925,1748019049527,-264.45,0.00027534,4]
[362133926,1748019049539,-311.05784032,0.00027534,4]
[362133927,1748019049549,-151.0,0.00027534,7]
[362133928,1748019049559,-151.418231,0.00027534,7]
[362133929,1748019049568,-350.14680647,0.00027534,4]
[362133930,1748019049579,-151.0,0.00027534,7]
[362133931,1748019049588,-420.0,0.00027534,4]
[362133932,1748019049597,-420.0,0.00027534,4]
[362133933,1748019049607,-420.0,0.00027534,4]
[362133934,1748019049618,-420.0,0.00027534,4]
[362133935,1748019049627,-420.0,0.00027534,4]
[362133936,1748019049637,-553.08,0.00027534,4]
[362133937,1748019049647,-151.0,0.00027534,7]
[362133938,1748019049656,-420.0,0.00027534,4]
[362133939,1748019049666,-420.0,0.00027534,4]
[362133940,1748019049676,-420.0,0.00027534,4]
[362133941,1748019049685,-151.0,0.00027534,7]
[362133942,1748019049695,-420.0,0.00027534,4]
[362133943,1748019049704,-420.0,0.00027534,4]
[362133944,1748019049714,-420.0,0.00027534,4]
[362133945,1748019049723,-420.0,0.00027534,4]
[362133946,1748019049733,-420.0,0.00027534,4]
[362133947,1748019049743,-360.35,0.00027534,4]
[362133948,1748019049752,-560.61,0.00027534,4]
[362133949,1748019049762,-420.0,0.00027534,4]
[362133950,1748019049772,-200.36,0.00027534,4]
[362133951,1748019049782,-151.959101,0.00027534,7]
[362133952,1748019049792,-420.0,0.00027534,4]
[362133953,1748019049802,-151.0,0.00027534,7]
[362133954,1748019049812,-151.0,0.00027534,7]
[362133955,1748019049822,-420.0,0.00027534,4]
[362133956,1748019049832,-151.0,0.00027534,7]
[362133957,1748019049841,-464.03,0.00027534,4]
[362133958,1748019049851,-420.0,0.00027534,4]
[362133959,1748019049861,-151.0,0.00027534,7]
[362133960,1748019049871,-151.0,0.00027534,7]
[362133961,1748019049881,-151.0,0.00027534,7]
[362133962,1748019049891,-151.0,0.00027534,7]
[362133963,1748019049901,-151.0,0.00027534,7]
[362133964,1748019049912,-420.0,0.00027534,4]
[362133965,1748019049921,-420.0,0.00027534,4]
[362133966,1748019049931,-151.0,0.00027534,7]
[362133967,1748019049941,-420.0,0.00027534,4]
[362133968,1748019049951,-151.257304,0.00027534,7]
[362133969,1748019049961,-420.0,0.00027534,4]
[362133970,1748019049971,-420.0,0.00027534,4]
[362133971,1748019049981,-346.88904974,0.00027534,4]
[362133972,1748019049993,-300.0,0.00027534,4]
[362133973,1748019050014,-420.0,0.00027534,4]
[362133974,1748019050035,-420.28,0.00027534,4]
[362133975,1748019050045,-420.0,0.00027534,4]
[362133976,1748019050055,-420.0,0.00027534,4]
[362133977,1748019050064,-450.27,0.00027534,4]
[362133978,1748019050074,-420.0,0.00027534,4]
[362133979,1748019050083,-420.0,0.00027534,4]
[362133980,1748019050093,-420.0,0.00027534,4]
[362133981,1748019050103,-530.06059993,0.00027534,4]
[362133982,1748019050113,-420.0,0.00027534,4]
[362133983,1748019050124,-435.6,0.00027534,4]
[362133984,1748019050133,-420.0,0.00027534,4]
[362133985,1748019050143,-420.0,0.00027534,4]
[362133986,1748019050153,-515.75,0.00027534,4]
[362133987,1748019050163,-420.0,0.00027534,4]
[362133988,1748019050173,-420.0,0.00027534,4]
[362133989,1748019050183,-400.0,0.00027534,4]
[362133990,1748019050193,-420.0,0.00027534,4]
[362133991,1748019050203,-420.0,0.00027534,4]
[362133992,1748019050214,-420.0,0.00027534,4]
[362133993,1748019050225,-420.0,0.00027534,4]
[362133994,1748019050235,-420.0,0.00027534,4]
[362133995,1748019050245,-420.0,0.00027534,4]
[362133996,1748019050254,-420.0,0.00027534,4]
[362133997,1748019050264,-420.0,0.00027534,4]
[362133998,1748019050275,-420.0,0.00027534,4]
[362133999,1748019050285,-478.01,0.00027534,4]
[362134000,1748019050297,-420.0,0.00027534,4]
[362134001,1748019050307,-194.28,0.00027534,4]
[362134002,1748019050318,-173.578116,0.00027534,4]
[362134003,1748019050327,-420.0,0.00027534,4]
[362134004,1748019050338,-420.0,0.00027534,4]
[362134005,1748019050348,-286.57346028,0.00027534,4]
[362134006,1748019050358,-420.0,0.00027534,4]
[362134007,1748019050369,-420.0,0.00027534,4]
[362134008,1748019050379,-420.0,0.00027534,4]
[362134009,1748019050389,-420.0,0.00027534,4]
[362134010,1748019050399,-420.0,0.00027534,4]
[362134011,1748019050409,-420.0,0.00027534,4]
[362134012,1748019050419,-420.0,0.00027534,4]
[362134013,1748019050429,-420.0,0.00027534,4]
[362134014,1748019050438,-502.0,0.00027534,4]
[362134015,1748019050449,-503.81,0.00027534,4]
[362134016,1748019050458,-496.03,0.00027534,4]
[362134017,1748019050468,-420.0,0.00027534,4]
[362134018,1748019050478,-561.35,0.00027534,4]
[362134019,1748019050488,-420.0,0.00027534,4]
[362134020,1748019050498,-420.0,0.00027534,4]
[362134021,1748019050507,-420.0,0.00027534,4]
[362134022,1748019050517,-291.1,0.00027534,4]
[362134023,1748019050527,-420.0,0.00027534,4]
[362134024,1748019050542,-420.0,0.00027534,4]
[362134025,1748019050735,-420.0,0.00027534,4]
[362134026,1748019050746,-420.0,0.00027534,4]
[362134027,1748019050756,-420.0,0.00027534,4]
[362134028,1748019050766,-388.94812568,0.00027534,4]
[362134029,1748019050776,-420.0,0.00027534,4]
[362134030,1748019050786,-420.0,0.00027534,4]
[362134031,1748019050796,-420.0,0.00027534,4]
[362134032,1748019050806,-420.0,0.00027534,4]
[362134033,1748019050815,-420.0,0.00027534,4]
[362134034,1748019050825,-420.0,0.00027534,4]
[362134035,1748019050835,-420.0,0.00027534,4]
[362134036,1748019050845,-420.0,0.00027534,4]
[362134037,1748019050855,-420.0,0.00027534,4]
[362134038,1748019050865,-420.0,0.00027534,4]
[362134039,1748019050875,-314.4,0.00027534,4]
[362134040,1748019050885,-427.64428247,0.00027534,4]
[362134041,1748019050895,-420.0,0.00027534,4]
[362134042,1748019050907,-420.0,0.00027534,4]
[362134043,1748019050917,-420.0,0.00027534,4]
[362134044,1748019050926,-560.85788879,0.00027534,4]
[362134045,1748019050936,-420.0,0.00027534,4]
[362134046,1748019050947,-420.0,0.00027534,4]
[362134047,1748019050957,-420.0,0.00027534,4]
[362134048,1748019050967,-420.0,0.00027534,4]
[362134049,1748019050976,-420.0,0.00027534,4]
[362134050,1748019050986,-420.0,0.00027534,4]
[362134051,1748019050995,-420.0,0.00027534,4]
[362134052,1748019051006,-523.52,0.00027534,4]
[362134053,1748019051016,-420.0,0.00027534,4]
[362134054,1748019051027,-420.0,0.00027534,4]
[362134055,1748019051037,-250.0,0.00027534,4]
[362134056,1748019051049,-562.48,0.00027534,4]
[362134057,1748019051059,-420.0,0.00027534,4]
[362134058,1748019051069,-483.86,0.00027534,4]
[362134059,1748019051078,-420.0,0.00027534,4]
[362134060,1748019051088,-420.0,0.00027534,4]
[362134061,1748019051098,-222.33024261,0.00027534,4]
[362134062,1748019051107,-420.0,0.00027534,4]
[362134063,1748019051117,-542.21,0.00027534,4]
[362134064,1748019051127,-420.0,0.00027534,4]
[362134065,1748019051137,-1006.23,0.00027534,4]
[362134066,1748019051147,-437.49,0.00027534,4]
[362134067,1748019051156,-420.0,0.00027534,4]
[362134068,1748019051166,-420.0,0.00027534,4]
[362134069,1748019051176,-420.0,0.00027534,4]
[362134070,1748019051185,-420.0,0.00027534,4]
[362134071,1748019051196,-25994.11,0.00027534,4]
[362134072,1748019051205,-420.0,0.00027534,4]
[362134073,1748019051215,-420.0,0.00027534,4]
[362134074,1748019051224,-420.0,0.00027534,4]
[362134075,1748019051234,-1844.83,0.00027534,4]
[362134076,1748019051244,-420.0,0.00027534,4]
[362134077,1748019051253,-420.0,0.00027534,4]
[362134078,1748019051262,-469.53,0.00027534,4]
[362134079,1748019051271,-420.0,0.00027534,4]
[362134080,1748019051280,-420.0,0.00027534,4]
[362134081,1748019051290,-487.22,0.00027534,4]
[362134082,1748019051299,-420.0,0.00027534,4]
[362134083,1748019051309,-420.0,0.00027534,4]
[362134084,1748019051320,-420.0,0.00027534,4]
[362134085,1748019051329,-420.0,0.00027534,4]
[362134086,1748019051339,-420.0,0.00027534,4]
[362134087,1748019051349,-420.0,0.00027534,4]
[362134088,1748019051359,-420.0,0.00027534,4]
[362134089,1748019051368,-420.0,0.00027534,4]
[362134090,1748019051378,-420.0,0.00027534,4]
[362134091,1748019051387,-420.0,0.00027534,4]
[362134092,1748019051397,-420.0,0.00027534,4]
[362134093,1748019051406,-420.0,0.00027534,4]
[362134094,1748019051415,-420.0,0.00027534,4]
[362134095,1748019051426,-151.0,0.00027534,7]
[362134096,1748019051436,-420.0,0.00027534,4]
[362134097,1748019051445,-420.0,0.00027534,4]
[362134098,1748019051455,-420.0,0.00027534,4]
[362134099,1748019051465,-453.02,0.00027534,4]
[362134100,1748019051474,-420.0,0.00027534,4]
[362134101,1748019051484,-420.0,0.00027534,4]
[362134102,1748019051493,-1299.52,0.00027534,4]
[362134103,1748019051502,-420.0,0.00027534,4]
[362134104,1748019051511,-420.0,0.00027534,4]
[362134105,1748019051521,-420.0,0.00027534,4]
[362134106,1748019051531,-420.0,0.00027534,4]
[362134107,1748019051544,-420.0,0.00027534,4]
[362134108,1748019051554,-420.0,0.00027534,4]
[362134109,1748019051563,-420.0,0.00027534,4]
[362134110,1748019051573,-420.0,0.00027534,4]
[362134111,1748019051583,-421.35,0.00027534,4]
[362134112,1748019051592,-420.0,0.00027534,4]
[362134113,1748019051601,-420.0,0.00027534,4]
[362134114,1748019051611,-151.0,0.00027534,7]
[362134115,1748019051625,-420.0,0.00027534,4]
[362134116,1748019051636,-420.0,0.00027534,4]
[362134117,1748019051645,-420.0,0.00027534,4]
[362134118,1748019051656,-151.0,0.00027534,7]
[362134119,1748019051665,-420.0,0.00027534,4]
[362134120,1748019051675,-420.0,0.00027534,4]
[362134121,1748019051684,-420.0,0.00027534,4]
[362134122,1748019051693,-420.0,0.00027534,4]
[362134123,1748019051702,-420.0,0.00027534,4]
[362134124,1748019051712,-420.0,0.00027534,4]
[362134125,1748019051722,-420.0,0.00027534,4]
[362134126,1748019051732,-420.0,0.00027534,4]
[362134127,1748019051742,-420.0,0.00027534,4]
[362134128,1748019051751,-353.28,0.00027534,4]
[362134129,1748019051760,-520.71107916,0.00027534,4]
[362134130,1748019051771,-420.0,0.00027534,4]
[362134131,1748019051780,-1834.366864,0.00027534,7]
[362134132,1748019051790,-420.0,0.00027534,4]
[362134133,1748019051799,-420.0,0.00027534,4]
[362134134,1748019051808,-536.17,0.00027534,4]
[362134135,1748019051818,-420.0,0.00027534,4]
[362134136,1748019051827,-420.0,0.00027534,4]
[362134137,1748019051838,-420.0,0.00027534,4]
[362134138,1748019051848,-429.79,0.00027534,4]
[362134139,1748019051858,-420.0,0.00027534,4]
[362134140,1748019051868,-420.0,0.00027534,4]
[362134141,1748019051878,-431.92,0.00027534,4]
[362134142,1748019051888,-523.69,0.00027534,4]
[362134143,1748019051898,-420.0,0.00027534,4]
[362134144,1748019051908,-420.0,0.00027534,4]
[362134145,1748019051918,-420.0,0.00027534,4]
[362134146,1748019051927,-533.07524097,0.00027534,4]
[362134147,1748019051937,-329.80847428,0.00027534,4]
[362134148,1748019051947,-399.67708442,0.00027534,4]
[362134149,1748019051955,-420.0,0.00027534,4]
[362134150,1748019051965,-420.0,0.00027534,4]
[362134151,1748019051975,-516.92,0.00027534,4]
[362134152,1748019051984,-420.0,0.00027534,4]
[362134153,1748019051994,-420.0,0.00027534,4]
[362134154,1748019052003,-242.21,0.00027534,4]
[362134155,1748019052012,-420.0,0.00027534,4]
[362134156,1748019052022,-420.0,0.00027534,4]
[362134157,1748019052032,-484.44,0.00027534,4]
[362134158,1748019052041,-420.0,0.00027534,4]
[362134159,1748019052051,-506.04,0.00027534,4]
[362134160,1748019052061,-420.0,0.00027534,4]
[362134161,1748019052070,-420.0,0.00027534,4]
[362134162,1748019052079,-420.0,0.00027534,4]
[362134163,1748019052089,-420.0,0.00027534,4]
[362134164,1748019052098,-420.0,0.00027534,4]
[362134165,1748019052107,-420.0,0.00027534,4]
[362134166,1748019052117,-507.68,0.00027534,4]
[362134167,1748019052126,-349.88189601,0.00027534,4]
[362134168,1748019052136,-420.0,0.00027534,4]
[362134169,1748019052145,-5988.5,0.00027534,4]
[362134170,1748019052155,-420.0,0.00027534,4]
[362134171,1748019052165,-420.0,0.00027534,4]
[362134172,1748019052174,-546.7,0.00027534,4]
[362134173,1748019052184,-420.0,0.00027534,4]
[362134174,1748019052193,-202.49822687,0.00027534,4]
[362134175,1748019052202,-420.0,0.00027534,4]
[362134176,1748019052212,-420.0,0.00027534,4]
[362134177,1748019052227,-420.0,0.00027534,4]
[362134178,1748019052249,-420.0,0.00027534,4]
[362134179,1748019052267,-533.7,0.00027534,4]
[362134180,1748019052276,-420.0,0.00027534,4]
[362134181,1748019052286,-420.79,0.00027534,4]
[362134182,1748019052296,-420.0,0.00027534,4]
[362134183,1748019052305,-420.0,0.00027534,4]
[362134184,1748019052315,-420.0,0.00027534,4]
[362134185,1748019052326,-420.0,0.00027534,4]
[362134186,1748019052335,-420.0,0.00027534,4]
[362134187,1748019052344,-544.86,0.00027534,4]
[362134188,1748019052354,-420.0,0.00027534,4]
[362134189,1748019052363,-420.0,0.00027534,4]
[362134190,1748019052372,-430.39,0.00027534,4]
[362134191,1748019052381,-420.0,0.00027534,4]
[362134192,1748019052390,-425.72,0.00027534,4]
[362134193,1748019052399,-3105.51,0.00027534,2]
[362134194,1748019052409,-420.0,0.00027534,4]
[362134195,1748019052418,-420.0,0.00027534,4]
[362134196,1748019052428,-534.29,0.00027534,4]
[362134197,1748019052437,-367.74440385,0.00027534,4]
[362134198,1748019052446,-420.0,0.00027534,4]
[362134199,1748019052456,-420.0,0.00027534,4]
[362134200,1748019052465,-420.0,0.00027534,4]
[362134201,1748019052474,-420.0,0.00027534,4]
[362134202,1748019052483,-420.0,0.00027534,4]
[362134203,1748019052493,-420.0,0.00027534,4]
[362134204,1748019052502,-420.0,0.00027534,4]
[362134205,1748019052511,-420.0,0.00027534,4]
[362134206,1748019052520,-420.0,0.00027534,4]
[362134207,1748019052529,-420.0,0.00027534,4]
[362134208,1748019052542,-420.0,0.00027534,4]
[362134209,1748019052551,-420.0,0.00027534,4]
[362134210,1748019052561,-420.0,0.00027534,4]
[362134211,1748019052570,-420.0,0.00027534,4]
[362134212,1748019052581,-324.41010689,0.00027534,4]
[362134213,1748019052590,-420.0,0.00027534,4]
[362134214,1748019052599,-151.0,0.00027534,7]
[362134215,1748019052608,-151.0,0.00027534,7]
[362134216,1748019052619,-420.0,0.00027534,4]
[362134217,1748019052628,-420.0,0.00027534,4]
[362134218,1748019052637,-151.0,0.00027534,7]
[362134219,1748019052646,-420.0,0.00027534,4]
[362134220,1748019052655,-7638.69,0.00027534,4]
[362134221,1748019052665,-420.0,0.00027534,4]
[362134222,1748019052674,-420.0,0.00027534,4]
[362134223,1748019052683,-514.34,0.00027534,4]
[362134224,1748019052693,-420.0,0.00027534,4]
[362134225,1748019052706,-420.0,0.00027534,4]
[362134226,1748019052719,-420.0,0.00027534,4]
[362134227,1748019052732,-420.0,0.00027534,4]
[362134228,1748019052744,-517.27,0.00027534,4]
[362134229,1748019052755,-420.0,0.00027534,4]
[362134230,1748019052765,-420.0,0.00027534,4]
[362134231,1748019052778,-420.0,0.00027534,4]
[362134232,1748019052790,-420.0,0.00027534,4]
[362134233,1748019052802,-420.0,0.00027534,4]
[362134234,1748019052814,-420.0,0.00027534,4]
[362134235,1748019052827,-151.0,0.00027534,7]
[362134236,1748019052841,-4274.15,0.00027534,4]
[362134237,1748019052854,-491.78,0.00027534,4]
[362134238,1748019052866,-420.0,0.00027534,4]
[362134239,1748019052879,-420.0,0.00027534,4]
[362134240,1748019052890,-2080.09,0.00027534,4]
[362134241,1748019052900,-420.0,0.00027534,4]
[362134242,1748019052913,-420.0,0.00027534,4]
[362134243,1748019052927,-420.0,0.00027534,4]
[362134244,1748019052939,-500.0,0.00027534,4]
[362134245,1748019052952,-420.0,0.00027534,4]
[362134246,1748019052963,-440.34063901,0.00027534,4]
[362134247,1748019053248,-297.73936099,0.00027534,4]
[362134248,1748019053260,-420.0,0.00027534,4]
[362134249,1748019053271,-420.0,0.00027534,4]
[362134250,1748019053282,-420.0,0.00027534,2]
[362134251,1748019053293,-420.0,0.00027534,4]
[362134252,1748019053304,-420.0,0.00027534,4]
[362134253,1748019053316,-479.370964,0.00027534,4]
[362134254,1748019053327,-455.75,0.00027534,4]
[362134255,1748019053338,-420.0,0.00027534,4]
[362134256,1748019053349,-516.01,0.00027534,4]
[362134257,1748019053361,-420.0,0.00027534,4]
[362134258,1748019053371,-420.0,0.00027534,4]
[362134259,1748019053382,-151.0,0.00027534,7]
[362134260,1748019053393,-420.0,0.00027534,4]
[362134261,1748019053404,-420.0,0.00027534,4]
[362134262,1748019053415,-420.0,0.00027534,4]
[362134263,1748019053426,-150.0,0.00027548,2]
[362134264,1748019053437,-150.0,0.00027549,2]
[362134265,1748019053457,-177.19685162,0.0002755,2]
[362134266,1748019053473,-276.15038251,0.00027562,30]
[362134267,1748019053487,-1063.68457763,0.00027568,2]
[362134268,1748019053500,-150.0,0.00027595,2]
[362134269,1748019053513,-182.29527465,0.00027597,2]
[362134270,1748019053525,-150.0,0.00027619,2]
[362134271,1748019053541,-150.0,0.00027644,2]
[362134272,1748019053555,-150.0,0.00027647,2]
[362134273,1748019053567,-150.0,0.00027648,2]
[362134274,1748019053581,-151.0,0.00027652,7]
[362134275,1748019053593,-151.0,0.00027652,7]
[362134276,1748019053606,-184.712392,0.00027661,7]
[362134277,1748019053619,-151.0,0.00027661,7]
[362134278,1748019053631,-151.0,0.00027662,7]
[362134279,1748019053644,-151.0,0.00027662,7]
[362134280,1748019053656,-151.0,0.00027662,7]
[362134281,1748019053669,-151.0,0.00027662,7]
[362134282,1748019053681,-151.0,0.00027662,7]
[362134283,1748019053693,-4461.2702677,0.00027662,2]
[362134284,1748019053706,-151.0,0.00027662,7]
[362134285,1748019053717,-2399.1138923,0.00027662,2]
[362134286,1748019053729,-6462.81779444,0.00027662,2]
[362134287,1748019053784,-666.9732536,0.00027662,2]
[362134288,1748019053799,-9083.95768827,0.00027662,2]
[362134289,1748019053813,-23309.9083952,0.00027662,2]
[362134290,1748019053827,-6099.8336,0.00027662,2]
[362134291,1748019053856,-22226.50580239,0.00027662,2]
[362134292,1748019053868,-150.0,0.00027667,2]
[362134293,1748019053880,-1000.0,0.00027669,2]
[362134294,1748019053891,-300.0,0.0002767,10]
[362134295,1748019053903,-420.0,0.0002767,4]
[362134296,1748019053914,-150.0,0.0002767,2]
[362134297,1748019053926,-420.0,0.00027671,2]
[362134298,1748019053938,-368.278338,0.00027671,4]
[362134299,1748019053950,-420.0,0.00027671,4]
[362134300,1748019053961,-420.0,0.00027671,4]
[362134301,1748019053973,-550.47,0.00027671,4]
[362134302,1748019053984,-379.37,0.00027671,4]
[362134303,1748019053996,-420.0,0.00027671,4]
[362134304,1748019054008,-420.0,0.00027671,4]
[362134305,1748019054019,-302.11,0.00027671,4]
[362134306,1748019054031,-272.96,0.00027671,4]
[362134307,1748019054044,-151.0,0.00027671,7]
[362134308,1748019054056,-151.0,0.00027671,7]
[362134309,1748019054067,-151.0,0.00027671,7]
[362134310,1748019054079,-420.0,0.00027671,4]
[362134311,1748019054090,-175.09837086,0.00027671,4]
[362134312,1748019054102,-420.0,0.00027671,4]
[362134313,1748019054115,-420.0,0.00027671,4]
[362134314,1748019054126,-151.0,0.00027671,7]
[362134315,1748019054138,-167.82565173,0.00027671,4]
[362134316,1748019054150,-420.0,0.00027671,4]
[362134317,1748019054162,-420.0,0.00027671,4]
[362134318,1748019054174,-374.78397876,0.00027671,4]
[362134319,1748019054189,-45.21602124,0.00027671,4]
[362134320,1748019054199,-420.0,0.00027671,4]
[362134321,1748019054210,-502.94,0.00027671,4]
[362134322,1748019054219,-420.0,0.00027671,4]
[362134323,1748019054229,-420.0,0.00027671,4]
[362134324,1748019054238,-492.36658924,0.00027671,4]
[362134325,1748019054248,-420.0,0.00027671,4]
[362134326,1748019054257,-290.25,0.00027671,4]
[362134327,1748019054267,-420.0,0.00027671,4]
[362134328,1748019054276,-151.0,0.00027671,7]
[362134329,1748019054285,-151.0,0.00027671,7]
[362134330,1748019054294,-151.0,0.00027671,7]
[362134331,1748019054304,-151.0,0.00027671,7]
[362134332,1748019054313,-151.0,0.00027671,7]
[362134333,1748019054322,-420.0,0.00027671,4]
[362134334,1748019054332,-151.0,0.00027671,7]
[362134335,1748019054341,-420.0,0.00027671,4]
[362134336,1748019054350,-354.98,0.00027671,4]
[362134337,1748019054359,-420.0,0.00027671,4]
[362134338,1748019054370,-420.0,0.00027671,4]
[362134339,1748019054379,-423.1,0.00027671,4]
[362134340,1748019054389,-420.0,0.00027671,4]
[362134341,1748019054399,-535.24360509,0.00027671,4]
[362134342,1748019054411,-420.0,0.00027671,4]
[362134343,1748019054421,-420.0,0.00027671,4]
[362134344,1748019054430,-215.22431069,0.00027671,4]
[362134345,1748019054440,-420.0,0.00027671,4]
[362134346,1748019054450,-420.0,0.00027671,4]
[362134347,1748019054459,-420.0,0.00027671,4]
[362134348,1748019054469,-420.0,0.00027671,4]
[362134349,1748019054478,-290.41,0.00027671,4]
[362134350,1748019054487,-420.0,0.00027671,4]
[362134351,1748019054497,-207.99117391,0.00027671,4]
[362134352,1748019054507,-420.0,0.00027671,4]